fUST/lending_fUST_20240415
["ID","MTS","AMOUNT","RATE_DAILY","PERIOD"]
[322629806,1713137442825,-500.0,0.0003863,7]
[322629807,1713137442834,-500.0,0.0003863,7]
[322629808,1713137442845,-500.0,0.0003863,7]
[322629809,1713137442854,-500.0,0.0003863,7]
[322629810,1713137442863,-151.0,0.0003863,2]
[322629812,1713137442873,-151.0,0.0003863,2]
[322629814,1713137442882,-500.0,0.0003863,7]
[322629816,1713137442891,-676.03,0.0003863,7]
[322629818,1713137442899,-500.0,0.0003863,7]
[322629820,1713137442908,-500.0,0.0003863,7]
[322629822,1713137442916,-500.0,0.0003863,7]
[322629824,1713137442925,-500.0,0.0003863,7]
[322629826,1713137442934,-500.0,0.0003863,7]
[322629828,1713137442943,-500.0,0.0003863,7]
[322629829,1713137442952,-515.0,0.0003863,7]
[322629831,1713137442962,-500.0,0.0003863,7]
[322629832,1713137442971,-391.71794438,0.0003863,7]
[322629833,1713137442980,-500.0,0.0003863,7]
[322629835,1713137442989,-500.0,0.0003863,7]
[322629836,1713137442999,-500.0,0.0003863,7]
[322629837,1713137443009,-500.0,0.0003863,7]
[322629838,1713137443018,-500.0,0.0003863,7]
[322629839,1713137443027,-500.0,0.0003863,7]
[322629840,1713137443036,-1540.02,0.0003863,7]
[322629843,1713137443045,-500.0,0.0003863,7]
[322629845,1713137443054,-151.0,0.0003863,2]
[322629847,1713137443063,-151.0,0.0003863,2]
[322629849,1713137443072,-500.0,0.0003863,7]
[322629850,1713137443082,-151.0,0.0003863,2]
[322629852,1713137443094,-151.0,0.0003863,2]
[322629855,1713137443103,-151.0,0.0003863,2]
[322629860,1713137443112,-254.036272,0.0003863,2]
[322629863,1713137443121,-500.0,0.0003863,7]
[322629865,1713137443131,-500.0,0.0003863,7]
[322629868,1713137443141,-500.0,0.0003863,7]
[322629870,1713137443151,-2257.731144,0.0003863,2]
[322629871,1713137443160,-2257.731144,0.0003863,2]
[322629873,1713137443168,-2257.731144,0.0003863,2]
[322629874,1713137443177,-2257.731144,0.0003863,2]
[322629875,1713137443186,-500.0,0.0003863,7]
[322629876,1713137443195,-500.0,0.0003863,7]
[322629878,1713137443204,-500.0,0.0003863,7]
[322629879,1713137443213,-151.0,0.0003863,2]
[322629880,1713137443222,-151.0,0.0003863,2]
[322629881,1713137443233,-510.31776424,0.0003863,7]
[322629882,1713137443242,-500.0,0.0003863,7]
[322629883,1713137443251,-500.0,0.0003863,7]
[322629885,1713137443261,-500.0,0.0003863,7]
[322629888,1713137443270,-500.0,0.0003863,7]
[322629890,1713137443280,-500.0,0.0003863,7]
[322629892,1713137443289,-151.0,0.0003863,2]
[322629893,1713137443298,-500.0,0.0003863,7]
[322629895,1713137443308,-500.0,0.0003863,7]
[322629896,1713137443317,-500.0,0.0003863,7]
[322629897,1713137443326,-500.0,0.0003863,7]
[322629898,1713137443335,-175.79838242,0.0003863,7]
[322629900,1713137443349,-575.095879,0.0003863,2]
[322629902,1713137443359,-575.095879,0.0003863,2]
[322629903,1713137443368,-500.0,0.0003863,7]
[322629904,1713137443377,-500.0,0.0003863,7]
[322629905,1713137443386,-6861.52,0.0003863,7]
[322629906,1713137443394,-500.0,0.0003863,7]
[322629907,1713137443402,-501.38,0.0003863,7]
[322629908,1713137443412,-498.41868532,0.0003863,7]
[322629909,1713137443421,-646.62,0.0003863,7]
[322629910,1713137443430,-20638.41,0.0003863,7]
[322629911,1713137443439,-500.0,0.0003863,7]
[322629912,1713137443449,-1628.6,0.0003863,7]
[322629913,1713137443458,-2239.45,0.0003863,7]
[322629914,1713137443468,-2224.64,0.0003863,7]
[322629915,1713137443477,-151.0,0.0003863,2]
[322629916,1713137443486,-500.0,0.0003863,7]
[322629917,1713137443505,-500.0,0.0003863,7]
[322629918,1713137443516,-3791.99,0.0003863,7]
[322629919,1713137443526,-500.0,0.0003863,7]
[322629920,1713137443536,-2966.79,0.0003863,7]
[322629921,1713137443546,-525.06,0.0003863,7]
[322629922,1713137443555,-500.0,0.0003863,7]
[322629923,1713137443565,-500.0,0.0003863,7]
[322629924,1713137443574,-500.0,0.0003863,7]
[322629925,1713137443585,-500.0,0.0003863,7]
[322629926,1713137443596,-500.0,0.0003863,7]
[322629927,1713137443606,-500.0,0.0003863,7]
[322629928,1713137443616,-627.87,0.0003863,7]
[322629929,1713137443625,-1100.83,0.0003863,7]
[322629930,1713137443634,-508.55,0.0003863,7]
[322629931,1713137443644,-683.73,0.0003863,7]
[322629932,1713137443654,-593.82,0.0003863,7]
[322629933,1713137443664,-16241.19,0.0003863,7]
[322629934,1713137443673,-545.02,0.0003863,7]
[322629935,1713137443683,-500.0,0.0003863,7]
[322629936,1713137443693,-500.0,0.0003863,7]
[322629937,1713137443702,-151.0,0.0003863,2]
[322629938,1713137443711,-500.0,0.0003863,7]
[322629939,1713137443722,-151.0,0.0003863,2]
[322629940,1713137443731,-151.0,0.0003863,2]
[322629941,1713137443740,-500.0,0.0003863,7]
[322629942,1713137443749,-500.0,0.0003863,7]
[322629943,1713137443759,-713.68,0.0003863,7]
[322629944,1713137443769,-500.0,0.0003863,7]
[322629945,1713137443778,-741.84,0.0003863,7]
[322629946,1713137443787,-151.0,0.0003863,2]
[322629947,1713137443796,-1548.68,0.0003863,7]
[322629948,1713137443807,-500.0,0.0003863,7]
[322629949,1713137443817,-500.0,0.0003863,7]
[322629950,1713137443826,-584.74709342,0.0003863,7]
[322629951,1713137443835,-559.32,0.0003863,7]
[322629952,1713137443846,-500.0,0.0003863,7]
[322629953,1713137443856,-500.0,0.0003863,7]
[322629954,1713137443865,-500.0,0.0003863,7]
[322629955,1713137443874,-1847.64,0.0003863,7]
[322629956,1713137443884,-500.0,0.0003863,7]
[322629957,1713137443893,-500.0,0.0003863,7]
[322629958,1713137443903,-500.0,0.0003863,7]
[322629959,1713137443912,-500.0,0.0003863,7]
[322629960,1713137443922,-592.84,0.0003863,7]
[322629961,1713137443932,-500.0,0.0003863,7]
[322629962,1713137443941,-500.0,0.0003863,7]
[322629963,1713137443951,-500.0,0.0003863,7]
[322629964,1713137443960,-4700.09,0.0003863,7]
[322629965,1713137443969,-500.0,0.0003863,7]
[322629966,1713137443979,-151.0,0.0003863,2]
[322629967,1713137443988,-160.328021,0.0003863,2]
[322629968,1713137443998,-2599.73,0.0003863,7]
[322629969,1713137444007,-871.59,0.0003863,7]
[322629970,1713137444017,-500.0,0.0003863,7]
[322629971,1713137444026,-500.0,0.0003863,7]
[322629972,1713137444036,-500.0,0.0003863,7]
[322629973,1713137444045,-500.0,0.0003863,7]
[322629974,1713137444054,-43196.74,0.0003863,7]
[322629975,1713137444064,-552.31111648,0.0003863,7]
[322629976,1713137444074,-500.0,0.0003863,7]
[322629977,1713137444084,-971.22,0.0003863,7]
[322629978,1713137444094,-999.89,0.0003863,7]
[322629979,1713137444103,-2286.240595,0.0003863,2]
[322629980,1713137444112,-2286.240595,0.0003863,2]
[322629981,1713137444121,-500.0,0.0003863,7]
[322629982,1713137444131,-2286.240595,0.0003863,2]
[322629983,1713137444140,-1076.78,0.0003863,7]
[322629984,1713137444149,-2286.240595,0.0003863,2]
[322629985,1713137444159,-500.0,0.0003863,7]
[322629986,1713137444169,-4561.1,0.0003863,7]
[322629987,1713137444178,-500.0,0.0003863,7]
[322629988,1713137444188,-219.951945,0.0003863,2]
[322629989,1713137444198,-219.951945,0.0003863,2]
[322629990,1713137444207,-500.0,0.0003863,7]
[322629991,1713137444217,-219.951945,0.0003863,2]
[322629992,1713137444226,-219.951945,0.0003863,2]
[322629993,1713137444236,-500.0,0.0003863,7]
[322629994,1713137444245,-2297.33,0.0003863,7]
[322629995,1713137444254,-2168.62,0.0003863,7]
[322629996,1713137444264,-10532.87,0.0003863,7]
[322629997,1713137444273,-712.93,0.0003863,7]
[322629998,1713137444283,-322.6216621,0.0003863,7]
[322629999,1713137444292,-204.972938,0.0003863,2]
[322630000,1713137444302,-204.972938,0.0003863,2]
[322630001,1713137444311,-595.7,0.0003863,7]
[322630002,1713137444321,-2908.51,0.0003863,7]
[322630003,1713137444330,-204.972938,0.0003863,2]
[322630004,1713137444340,-204.972938,0.0003863,2]
[322630005,1713137444349,-500.0,0.0003863,7]
[322630006,1713137444358,-500.0,0.0003863,7]
[322630007,1713137444368,-500.0,0.0003863,7]
[322630008,1713137444377,-500.0,0.0003863,7]
[322630009,1713137444386,-610.46,0.0003863,7]
[322630010,1713137444396,-724.82,0.0003863,7]
[322630011,1713137444405,-552.7091046,0.0003863,7]
[322630012,1713137444414,-7770.49,0.0003863,7]
[322630013,1713137444424,-500.0,0.0003863,7]
[322630014,1713137444434,-500.0,0.0003863,7]
[322630015,1713137444443,-500.0,0.0003863,7]
[322630016,1713137444452,-2409.82,0.0003863,7]
[322630017,1713137444461,-500.0,0.0003863,7]
[322630018,1713137444471,-2806.22,0.0003863,7]
[322630019,1713137444480,-500.0,0.0003863,7]
[322630020,1713137444490,-500.0,0.0003863,7]
[322630021,1713137444499,-151.0,0.0003863,2]
[322630022,1713137444508,-151.0,0.0003863,2]
[322630023,1713137444517,-500.0,0.0003863,7]
[322630024,1713137444527,-500.0,0.0003863,7]
[322630025,1713137444536,-627.97,0.0003863,7]
[322630026,1713137444545,-500.0,0.0003863,7]
[322630027,1713137444555,-500.0,0.0003863,7]
[322630028,1713137444565,-1423.27,0.0003863,7]
[322630029,1713137444574,-500.0,0.0003863,7]
[322630030,1713137444583,-4816.39,0.0003863,7]
[322630031,1713137444594,-500.0,0.0003863,7]
[322630032,1713137444603,-1392.987516,0.0003863,2]
[322630033,1713137444613,-2313.71,0.0003863,7]
[322630034,1713137444622,-610.4,0.00038669,10]
[322630035,1713137444633,-9890.7858,0.0003875,30]
[322630036,1713137444642,-260.52844265,0.000388,2]
[322630037,1713137444652,-243.42006531,0.00038831,9]
[322630038,1713137444661,-150.0,0.00038899,2]
[322630039,1713137444671,-3000.0,0.000389,20]
[322630040,1713137444681,-610.4,0.00038901,10]
[322630041,1713137444690,-713.46688095,0.00038902,4]
[322630042,1713137444700,-277.40950656,0.00038902,2]
[322630043,1713137444709,-155.0,0.00038902,4]
[322630044,1713137444845,-242.92908465,0.00038903,4]
[322630045,1713137444867,-273.911012,0.00038903,2]
[322630046,1713137444877,-273.911012,0.00038903,2]
[322630047,1713137444886,-151.0,0.00038903,2]
[322630048,1713137444895,-151.0,0.00038903,2]
[322630049,1713137444905,-151.0,0.00038903,2]
[322630050,1713137444914,-151.0,0.00038903,2]
[322630051,1713137444924,-2257.731144,0.00038903,2]
[322630052,1713137444933,-2257.731144,0.00038903,2]
[322630053,1713137444942,-610.4,0.00038903,10]
[322630054,1713137444952,-610.4,0.00038903,10]
[322630055,1713137444961,-610.4,0.00038903,10]
[322630056,1713137444971,-610.4,0.00038903,10]
[322630057,1713137444980,-610.4,0.00038903,10]
[322630058,1713137444989,-610.4,0.00038903,10]
[322630059,1713137444998,-610.4,0.00038903,10]
[322630060,1713137445007,-610.4984096,0.00038903,10]
[322630061,1713137445016,-160.75,0.00038903,2]
[322630062,1713137445025,-684.31,0.00038904,7]
[322630063,1713137445034,-500.0,0.00038904,7]
[322630064,1713137445043,-500.0,0.00038904,7]
[322630065,1713137445053,-754.38,0.00038904,7]
[322630066,1713137445062,-500.0,0.00038904,7]
[322630067,1713137445071,-1481.07,0.00038904,7]
[322630068,1713137445081,-500.0,0.00038904,7]
[322630069,1713137445092,-500.0,0.00038904,7]
[322630070,1713137445101,-500.0,0.00038904,7]
[322630071,1713137445110,-500.0,0.00038904,7]
[322630072,1713137445120,-500.0,0.00038904,7]
[322630073,1713137445129,-500.0,0.00038904,7]
[322630074,1713137445138,-500.0,0.00038904,7]
[322630075,1713137445147,-500.0,0.00038904,7]
[322630076,1713137445156,-273.911012,0.00038904,2]
[322630077,1713137445165,-273.911012,0.00038904,2]
[322630078,1713137445174,-500.0,0.00038904,7]
[322630079,1713137445184,-273.911012,0.00038904,2]
[322630080,1713137445193,-273.911012,0.00038904,2]
[322630081,1713137445202,-151.0,0.00038904,2]
[322630082,1713137445211,-151.0,0.00038904,2]
[322630083,1713137445220,-500.0,0.00038904,7]
[322630084,1713137445229,-151.0,0.00038904,2]
[322630085,1713137445238,-151.0,0.00038904,2]
[322630086,1713137445248,-500.0,0.00038904,7]
[322630087,1713137445256,-500.0,0.00038904,7]
[322630088,1713137445266,-1636.3,0.00038904,7]
[322630089,1713137445275,-500.0,0.00038904,7]
[322630090,1713137445284,-272.3842325,0.00038904,7]
[322630091,1713137445293,-500.0,0.00038904,7]
[322630092,1713137445302,-500.0,0.00038904,7]
[322630093,1713137445312,-500.0,0.00038904,7]
[322630094,1713137445321,-151.0,0.00038904,2]
[322630095,1713137445330,-523.25980538,0.00038904,7]
[322630096,1713137445340,-151.0,0.00038904,2]
[322630097,1713137445349,-151.0,0.00038904,2]
[322630098,1713137445358,-676.03,0.00038904,7]
[322630099,1713137445367,-500.0,0.00038904,7]
[322630100,1713137445377,-621.97672492,0.00038904,7]
[322630101,1713137445386,-500.0,0.00038904,7]
[322630102,1713137445395,-500.0,0.00038904,7]
[322630103,1713137445404,-349.01511117,0.00038904,7]
[322630105,1713137445413,-500.0,0.00038904,7]
[322630107,1713137445422,-534.54505286,0.00038904,7]
[322630108,1713137445431,-500.0,0.00038904,7]
[322630109,1713137445440,-500.0,0.00038904,7]
[322630110,1713137445450,-500.0,0.00038904,7]
[322630111,1713137445459,-488.85023791,0.00038904,7]
[322630113,1713137445468,-500.0,0.00038904,7]
[322630115,1713137445477,-1540.02,0.00038904,7]
[322630116,1713137445486,-500.0,0.00038904,7]
[322630117,1713137445495,-151.0,0.00038904,2]
[322630118,1713137445504,-151.0,0.00038904,2]
[322630120,1713137445513,-500.0,0.00038904,7]
[322630122,1713137445522,-151.0,0.00038904,2]
[322630124,1713137445531,-151.0,0.00038904,2]
[322630125,1713137445540,-500.0,0.00038904,7]
[322630127,1713137445550,-500.0,0.00038904,7]
[322630128,1713137445558,-500.0,0.00038904,7]
[322630129,1713137445567,-2257.731144,0.00038904,2]
[322630130,1713137445577,-2257.731144,0.00038904,2]
[322630131,1713137445586,-2257.731144,0.00038904,2]
[322630133,1713137445596,-2257.731144,0.00038904,2]
[322630135,1713137445605,-597.6012476,0.00038904,7]
[322630137,1713137445615,-500.0,0.00038904,7]
[322630138,1713137445624,-500.0,0.00038904,7]
[322630139,1713137445634,-500.0,0.00038904,7]
[322630140,1713137445644,-500.0,0.00038904,7]
[322630141,1713137445653,-151.0,0.00038904,2]
[322630142,1713137445662,-185.44984037,0.00038904,7]
[322630143,1713137445671,-500.0,0.00038904,7]
[322630144,1713137445680,-500.0,0.00038904,7]
[322630145,1713137445690,-575.095879,0.00038904,2]
[322630146,1713137445699,-575.095879,0.00038904,2]
[322630147,1713137445708,-575.095879,0.00038904,2]
[322630148,1713137445717,-575.095879,0.00038904,2]
[322630149,1713137445727,-500.0,0.00038904,7]
[322630150,1713137445736,-575.095879,0.00038904,2]
[322630151,1713137445746,-500.0,0.00038904,7]
[322630152,1713137445755,-6861.52,0.00038904,7]
[322630153,1713137445764,-575.095879,0.00038904,2]
[322630154,1713137445773,-500.0,0.00038904,7]
[322630155,1713137445783,-501.38,0.00038904,7]
[322630156,1713137445793,-646.62,0.00038904,7]
[322630157,1713137445802,-20638.41,0.00038904,7]
[322630158,1713137445811,-514.94946323,0.00038904,7]
[322630159,1713137445821,-1628.6,0.00038904,7]
[322630160,1713137445832,-2239.45,0.00038904,7]
[322630161,1713137445844,-2224.64,0.00038904,7]
[322630162,1713137445853,-151.0,0.00038904,2]
[322630163,1713137445862,-500.0,0.00038904,7]
[322630164,1713137445871,-500.0,0.00038904,7]
[322630165,1713137445880,-3791.99,0.00038904,7]
[322630166,1713137445892,-500.0,0.00038904,7]
[322630167,1713137445903,-2966.79,0.00038904,7]
[322630168,1713137445912,-525.06,0.00038904,7]
[322630169,1713137445923,-500.0,0.00038904,7]
[322630170,1713137445932,-500.0,0.00038904,7]
[322630171,1713137445941,-500.0,0.00038904,7]
[322630173,1713137445951,-500.0,0.00038904,7]
[322630174,1713137445960,-500.0,0.00038904,7]
[322630175,1713137445970,-500.0,0.00038904,7]
[322630176,1713137445979,-627.87,0.00038904,7]
[322630177,1713137445988,-1100.83,0.00038904,7]
[322630178,1713137445997,-508.55,0.00038904,7]
[322630179,1713137446007,-683.73,0.00038904,7]
[322630181,1713137446016,-593.82,0.00038904,7]
[322630182,1713137446025,-16241.19,0.00038904,7]
[322630183,1713137446034,-545.02,0.00038904,7]
[322630184,1713137446043,-500.0,0.00038904,7]
[322630185,1713137446053,-151.0,0.00038904,2]
[322630186,1713137446062,-500.0,0.00038904,7]
[322630187,1713137446072,-158.953514,0.00038904,2]
[322630188,1713137446081,-151.0,0.00038904,2]
[322630189,1713137446093,-151.0,0.00038904,2]
[322630190,1713137446102,-243.79794,0.00038904,2]
[322630191,1713137446111,-151.0,0.00038904,2]
[322630192,1713137446121,-500.0,0.00038904,7]
[322630193,1713137446130,-713.68,0.00038904,7]
[322630194,1713137446141,-500.0,0.00038904,7]
[322630195,1713137446150,-741.84,0.00038904,7]
[322630196,1713137446159,-151.0,0.00038904,2]
[322630197,1713137446168,-151.0,0.00038904,2]
[322630198,1713137446179,-151.0,0.00038904,2]
[322630199,1713137446188,-1548.68,0.00038904,7]
[322630200,1713137446198,-500.0,0.00038904,7]
[322630201,1713137446208,-500.0,0.00038904,7]
[322630202,1713137446217,-559.32,0.00038904,7]
[322630203,1713137446227,-500.0,0.00038904,7]
[322630204,1713137446237,-500.0,0.00038904,7]
[322630205,1713137446246,-1847.64,0.00038904,7]
[322630206,1713137446255,-500.0,0.00038904,7]
[322630207,1713137446265,-500.0,0.00038904,7]
[322630208,1713137446275,-500.0,0.00038904,7]
[322630209,1713137446286,-500.0,0.00038904,7]
[322630210,1713137446296,-592.84,0.00038904,7]
[322630211,1713137446306,-500.0,0.00038904,7]
[322630212,1713137446315,-500.0,0.00038904,7]
[322630213,1713137446325,-400.0,0.00038904,7]
[322630214,1713137446336,-4700.09,0.00038904,7]
[322630215,1713137446349,-500.0,0.00038904,7]
[322630216,1713137446358,-2599.73,0.00038904,7]
[322630217,1713137446367,-871.59,0.00038904,7]
[322630218,1713137446376,-500.0,0.00038904,7]
[322630219,1713137446385,-236.94,0.00038904,7]
[322630220,1713137446394,-500.0,0.00038904,7]
[322630221,1713137446403,-500.0,0.00038904,7]
[322630222,1713137446412,-35940.71356703,0.00038904,7]
[322630226,1713137447055,-6576.37363606,0.00037939,7]
[322630227,1713137447071,-8000.0,0.00038355,4]
[322630228,1713137447081,-303.60149311,0.00038355,4]
[322630229,1713137447093,-500.0,0.00038356,7]
[322630230,1713137447103,-500.0,0.00038356,7]
[322630231,1713137447113,-500.0,0.00038356,7]
[322630232,1713137447123,-1392.987516,0.0003863,2]
[322630233,1713137447131,-1305.99423965,0.0003863,2]
[322630235,1713137459986,924.03970052,0.0003,4]
[322630251,1713138431161,-465.5414644,0.00027379,2]
[322630252,1713138431181,-225.96625416,0.00027396,2]
[322630253,1713138431202,-219.102968,0.00027397,2]
[322630254,1713138431222,-165.420773,0.00027397,2]
[322630255,1713138431241,-166.666666,0.00029745,2]
[322630256,1713138431261,-6.74742414,0.0003,4]
[322630257,1713138447100,-192.82862545,0.00027645,2]
[322630258,1713138447121,-148.06679879,0.0003,4]
[322630259,1713138447142,-218.156241,0.00030303,2]
[322630260,1713138447164,-183.792618,0.00030517,2]
[322630261,1713138447185,-8000.0,0.00030555,4]
[322630262,1713138447205,-166.666666,0.00030556,2]
[322630263,1713138447225,-400.0,0.00031365,2]
[322630264,1713138447247,-400.0,0.00031365,2]
[322630265,1713138447266,-166.666666,0.00031367,2]
[322630266,1713138447286,-181.18098361,0.00031998,4]
[322630267,1713138447306,-211.29871297,0.00031998,4]
[322630268,1713138447326,-37176.36096398,0.00032,30]
[322630269,1713138454144,-320.4215742,0.00031999,2]
[322630271,1713138545089,-400.0,0.00031996,2]
[322630272,1713138545111,-400.0,0.00031996,2]
[322630273,1713138545135,-303.60149311,0.00031997,4]
[322630274,1713138545156,-8000.0,0.00031997,4]
[322630275,1713138545176,-353.96878806,0.00031998,2]
[322630276,1713138545196,-924.34084722,0.00031998,4]
[322630277,1713138545217,-259.71543248,0.00031999,2]
[322630278,1713138545239,-10316.77542322,0.00032,30]
[322630280,1713138551083,-52831.9876293,0.00032,30]
[322630281,1713138551111,-413.90615978,0.00032078,5]
[322630282,1713138551133,-166.666666,0.00032178,2]
[322630283,1713138551154,-177.23920885,0.00032645,2]
[322630284,1713138560265,-15.5894166,0.00032645,2]
[322630285,1713138560285,-166.666666,0.00032989,2]
[322630286,1713138560303,-346.88621942,0.00033065,2]
[322630287,1713138564633,7319.9934171,0.00032,30]
[322630288,1713138566139,-725.47742525,0.00032,30]
[322630289,1713138569095,-92279.65317415,0.00032,30]
[322630290,1713138569116,-219.102968,0.00033165,2]
[322630291,1713138569137,-413.90615973,0.00033536,6]
[322630292,1713138569158,-166.666666,0.000338,2]
[322630293,1713138569178,-560.0,0.00034414,2]
[322630294,1713138569198,-346.88621939,0.00034431,2]
[322630295,1713138569219,-413.90615973,0.00034993,7]
[322630296,1713138569241,-560.0,0.00035196,2]
[322630297,1713138569260,-662.4455497,0.00035226,2]
[322630299,1713138582627,561.48674022,0.00032,30]
[322630308,1713138632716,-303.60149311,0.00031998,4]
[322630309,1713138632726,-122.2921204,0.00031998,4]
[322630402,1713138638753,-3290.08895663,0.00031998,4]
[322630403,1713138638763,-400.0,0.00031999,2]
[322630404,1713138638773,-400.0,0.00031999,2]
[322630405,1713138638782,-8000.0,0.00031999,4]
[322630406,1713138638791,-99763.63727628,0.00032,30]
[322630407,1713138638803,-414.0,0.00034417,2]
[322630408,1713138638812,-560.0,0.00035199,2]
[322630409,1713138638821,-346.88621939,0.00035798,2]
[322630410,1713138638830,-413.90615973,0.00036451,7]
[322630411,1713138638839,-346.88621939,0.00037164,2]
[322630412,1713138638848,-192.82862545,0.00037645,2]
[322630413,1713138638858,-188.43765363,0.00037833,2]
[322630414,1713138638867,-413.90615973,0.00037909,8]
[322630415,1713138638876,-2817.22453814,0.00037938,4]
[322630416,1713138638885,-6576.37363606,0.00037939,7]
[322630417,1713138638894,-916.77470393,0.00038256,2]
[322630418,1713138638903,-713.46688095,0.00038354,4]
[322630419,1713138638912,-277.40950656,0.00038354,2]
[322630420,1713138638921,-242.92908465,0.00038354,4]
[322630421,1713138638929,-155.95728951,0.00038354,4]
[322630422,1713138638939,-154.81422293,0.00038354,4]
[322630423,1713138638949,-154.81422293,0.00038354,4]
[322630424,1713138638960,-154.81422293,0.00038354,4]
[322630425,1713138638970,-154.81422293,0.00038354,4]
[322630426,1713138638978,-154.79876161,0.00038354,4]
[322630427,1713138638987,-155.01833858,0.00038354,4]
[322630428,1713138638996,-314.60513727,0.00038354,4]
[322630429,1713138639006,-159.41608949,0.00038354,4]
[322630430,1713138639015,-155.0,0.00038355,4]
[322630431,1713138639026,-294.46605131,0.00038355,15]
[322630432,1713138639038,-525.0,0.00038355,15]
[322630433,1713138639048,-500.0,0.00038355,2]
[322630434,1713138639057,-26719.87552554,0.00038356,5]
[322630435,1713138639066,-192.29038729,0.00038356,7]
[322630436,1713138639074,-500.0,0.00038356,7]
[322630437,1713138639083,-500.0,0.00038356,7]
[322630438,1713138639092,-500.0,0.00038356,7]
[322630439,1713138639101,-500.0,0.00038356,7]
[322630440,1713138639110,-500.0,0.00038356,7]
[322630441,1713138639119,-500.0,0.00038356,7]
[322630442,1713138639128,-500.0,0.00038356,7]
[322630443,1713138639137,-500.0,0.00038356,7]
[322630444,1713138639146,-500.0,0.00038356,7]
[322630445,1713138639155,-500.0,0.00038356,7]
[322630446,1713138639164,-500.0,0.00038356,7]
[322630447,1713138639173,-500.0,0.00038356,7]
[322630448,1713138639182,-180.12298975,0.00038356,7]
[322630449,1713138639313,-500.0,0.00038356,7]
[322630450,1713138639322,-500.0,0.00038356,7]
[322630451,1713138639332,-500.0,0.00038356,7]
[322630452,1713138639341,-1547.19,0.00038356,7]
[322630453,1713138639350,-500.0,0.00038356,7]
[322630454,1713138639359,-1635.05,0.00038356,7]
[322630455,1713138639368,-497.48,0.00038356,7]
[322630456,1713138639377,-500.0,0.00038356,7]
[322630457,1713138639386,-532.34576544,0.00038356,7]
[322630458,1713138639395,-500.0,0.00038356,7]
[322630459,1713138639404,-500.0,0.00038356,7]
[322630460,1713138639413,-500.0,0.00038356,7]
[322630461,1713138639423,-500.0,0.00038356,7]
[322630462,1713138639432,-500.0,0.00038356,7]
[322630463,1713138639441,-500.0,0.00038356,7]
[322630464,1713138639450,-500.0,0.00038356,7]
[322630465,1713138639459,-580.11419855,0.00038356,7]
[322630466,1713138639468,-500.0,0.00038356,7]
[322630467,1713138639477,-500.0,0.00038356,7]
[322630468,1713138639486,-500.0,0.00038356,7]
[322630469,1713138639496,-500.0,0.00038356,7]
[322630470,1713138639505,-500.0,0.00038356,7]
[322630471,1713138639514,-246.51846652,0.00038356,7]
[322630472,1713138639523,-181.97753445,0.00038356,7]
[322630473,1713138639533,-500.0,0.00038356,7]
[322630474,1713138639543,-500.0,0.00038356,7]
[322630475,1713138639555,-500.0,0.00038356,7]
[322630476,1713138639564,-500.0,0.00038356,7]
[322630477,1713138639574,-500.0,0.00038356,7]
[322630478,1713138639583,-382.88053639,0.00038356,7]
[322630479,1713138639591,-500.0,0.00038356,7]